{"text_format":"3","workbook":"xlsx","n_sheets":5,"sheets":["general","SW-R","SW-L","Manually_operated","Obrázky"],"not_rendered":{"images":31,"defined_names":2},"read":"whole","date_system":"1900"}

{"sheet":"general","index":0,"n_rows":127,"n_cols":47,"rows_kept":127,"merged":[[1,22,2,27],[3,23,3,27],[4,23,4,27],[6,10,6,13],[6,17,6,18],[8,10,8,12],[10,13,10,14],[11,3,11,5],[12,4,12,5],[12,18,14,18],[13,4,13,6],[13,15,14,15],[13,16,14,17],[15,1,19,1],[15,2,17,2],[15,18,17,18],[17,19,19,19],[18,8,18,9],[18,18,23,18],[19,2,20,2],[19,9,19,14],[20,19,20,20],[21,19,23,19],[22,1,24,1],[26,7,28,7],[31,24,32,26],[32,16,33,16],[33,5,33,6],[36,4,36,5],[37,24,38,26],[40,1,42,1],[40,24,41,26],[43,5,43,6],[49,17,50,27],[52,17,53,27],[54,17,55,27],[58,12,58,15],[60,12,60,15],[60,17,60,18],[60,19,60,20],[60,21,60,22],[60,23,60,24],[61,17,61,18],[61,19,61,20],[61,21,61,22],[61,23,61,24],[62,12,62,15],[62,17,63,20],[62,21,66,27],[64,14,64,15],[67,21,68,24],[67,26,67,27],[68,26,68,27]]}
[{"$nulls":29},"č.jaz.",{"$f":"VLOOKUP(E5,AD3:AE11,2,FALSE)","v":1},null,"SVYHLEDAT","CZ","EN","DE","PL","FR","NL","EST","FIN","RU",{"$nulls":4},{"$f":"$AG$102","v":"ručně"}]
[{"$nulls":22},{"$f":"VLOOKUP(AG13,AG2:AR96,$AE$1+1,FALSE)","v":"VEDENÍ PRO NÍZKÝ PŘEKLAD (LL-I)"},{"$nulls":6},"Jazyk","číslo",null,{"$f":"VLOOKUP(AH2,AH2:AR96,$AE$1,FALSE)","v":"Zvolit jazyk: "},"Zvolit jazyk: ","Select a language:","Wählen Sie eine Sprache","Wybierz język","Sélectionner une langue","Kies een taal:","Valige keel","Valitse kieli:","Выберите язык:",{"$nulls":4},{"$f":"$AG$106","v":"řetězovým převodem vpravo"}]
[null,"Zvol jazyk:",{"$nulls":5},{"$f":"VLOOKUP(AG3,AG2:AR96,$AE$1+1,FALSE)","v":"Šířka otvoru"},{"$nulls":21},"CZ",1,null,{"$f":"VLOOKUP(AH3,AH3:AR96,$AE$1,FALSE)","v":"Šířka otvoru"},"Šířka otvoru","Opening width","Lichte Breite","Szerokość otworu","LARGEUR DE BAIE","Dagmaat breedte","Ava laius","Oviaukon leveys","Ширина проема",{"$nulls":4},{"$f":"$AG$105","v":"řetězovým převodem vlevo"}]
[null,"Select a language:",{"$nulls":21},"W max 6000 mm; H max 5000 mm; max. 30 m2",{"$nulls":5},"EN",2,null,{"$f":"VLOOKUP(AH4,AH4:AR97,$AE$1,FALSE)","v":"Výška otvoru"},"Výška otvoru","Opening height","Lichte Höhe","Wysokość otworu","HAUTEUR DE BAIE","Dagmaat hoogte","Ava kõrgus","Oviaukon korkeus","Высота проема",{"$nulls":4},{"$f":"$AG$109","v":"Elektricky - motor vpravo"}]
[null,"Wählen Sie eine Sprache:",null,null,"CZ",null,null,{"$f":"VLOOKUP(AG4,AG2:AR96,$AE$1+1,FALSE)","v":"Výška otvoru"},{"$nulls":6},{"$f":"VLOOKUP(AH99,AH99:AR175,$AE$1,FALSE)","v":"Prosím, vyplňte pole, která jsou označena barevně!"},{"$nulls":14},"DE",3,null,{"$f":"VLOOKUP(AH5,AH5:AR96,$AE$1,FALSE)","v":"POHLED ZEVNITŘ"},"POHLED ZEVNITŘ","INTERIOR VIEW","INNENANSICHT","Widok od środka","VUE INTERIEURE","BINNENAANZICHT","seestvaade","SISÄLTÄPÄIN KUVATTUNA","Вид изнутри",{"$nulls":4},{"$f":"$AG$108","v":"Elektricky - motor vlevo"}]
[null,"Wybierz język:",{"$nulls":27},"PL",4,null,{"$f":"VLOOKUP(AH6,AH6:AR100,$AE$1,FALSE)","v":"ŘEZ A-A"},"ŘEZ A-A","SECTION A-A","DURCHSCHNITT A-A","Przekrój A-A","COUPE A-A","DOORSNEDE A-A","vaade A-A","LEIKKAUS A-A","Разрез А-А"]
[null,"Sélectionner une langue:",{"$nulls":5},{"$f":"VLOOKUP(AG101,AG8:AR101,$AE$1+1,FALSE)","v":"Ovládání"},{"$nulls":21},"FR",5,null,{"$f":"VLOOKUP(AH7,AH7:AR100,$AE$1,FALSE)","v":"ŘEZ B-B"},"ŘEZ B-B","SECTION B-B","DURCHSCHNITT B-B","Przekrój B-B","COUPE B-B","DOORSNEDE B-B","VAADE B-B","LEIKKAUS B-B","Разрез B-B"]
[null,"Valige keel",{"$nulls":27},"NL",6,null,{"$f":"VLOOKUP(AH8,AH8:AR101,$AE$1,FALSE)","v":"POZNÁMKA:"},"POZNÁMKA:","NOTE:","ACHTUNG:","Uwaga:","Remarque:","OPMERKING:","MÄRKUS","HUOMAUTUS:","ПРИМЕЧАНИЯ:"]
[null,"Valitse kieli:",{"$nulls":5},{"$f":"AG120","v":"Typ panelu"},{"$nulls":7},{"$f":"VLOOKUP($AG$6,$AG$2:$AR$96,$AE$1+1,FALSE)","v":"ŘEZ A-A"},{"$nulls":13},"EST",7]
[null,"Выберите язык:",{"$nulls":27},"FIN",8]
[{"$nulls":29},"RU",9]
[]
[{"$nulls":32},{"$f":"VLOOKUP(AH13,AH13:AR105,$AE$1,FALSE)","v":"VEDENÍ PRO NÍZKÝ PŘEKLAD (LL-I)"},"VEDENÍ PRO NÍZKÝ PŘEKLAD (LL-I)","LOW LIFT SYSTEM (LL-I)","NIEDRIGSTURZ BESCHLAG (LL-I)","PROWADZENIE DLA NIESKIEGO NADPROŻA (LL-I)","LEVEE REDUITE (LL-I)","LAAG PLAFONDSYSTEEM KABELS BINNENDOOR (LL-I)","Madaltõste (LL-I)","MATALANOSTO (LL-I)","НИЗКИЙ ПОДЪЕМ (LL-I)"]
[{"$nulls":4},{"$f":"VLOOKUP(AG5,AG2:AR96,$AE$1+1,FALSE)","v":"POHLED ZEVNITŘ"},{"$nulls":27},{"$f":"VLOOKUP(AH14,AH14:AR106,$AE$1,FALSE)","v":"PRUŽINY NAD PŘEKLADEM"},"PRUŽINY NAD PŘEKLADEM","springs above lintel","Federn oberhalb des Sturzes","SPRĘŻYNY NAD NADPROŻEM","RESSORTS AVANTS DEPORTES DU LINTEAU","verenpakket boven latei","Vedrud ava kohal","jouset ovipalkkin päällä","нижнее расположение вала"]
[{"$nulls":32},{"$f":"VLOOKUP(AH15,AH15:AR107,$AE$1,FALSE)","v":"pro HL>600 a HL<=1200"},"pro HL>600 a HL<=1200","for HL>600 and HL<=1200","pro HL>600 und HL<=1200","pro HL>600 i HL<=1200","pro HL>600 et HL<=1200","van HL>600 tot HL<=1200","HL>600 ja HL<=1200","pro HL>600 ja HL<=1200","при высоте подъема > 600 и <= 1200"]
[{"$nulls":32},{"$f":"VLOOKUP(AH16,AH16:AR108,$AE$1,FALSE)","v":"PANEL 40mm"},"PANEL 40mm","SECTION THICKNESS 40 mm","Paneel 40 mm","Panel 40 mm","40 mm PANNEAU","PANEEL 40 mm","Paneel 40 mm","Lamelli 40mm","ТОЛЩИНА СЕКЦИИ 40мм "]
[{"$nulls":32},{"$f":"VLOOKUP(AH17,AH17:AR109,$AE$1,FALSE)","v":"Max. W x H 5000x5000, max. 24 m2 (300 kg)"},"Max. W x H 5000x5000, max. 24 m2 (300 kg)","Max. W x H 5000x5000, max. 24 m2 (300 kg)","Max. W x H 5000x5000, max. 24 m2 (300 kg)","Max. W x H 5000x5000, max. 24 m2 (300 kg)","Max. W x H 5000x5000, max. 24 m2 (300 kg)","Max. W x H 4000x4000","Max. W x H 4000x4000","Max. W x H 4000x4000","макс. ШхВ (WxH) 4000x4000"]
[]
[]
["*",{"$nulls":8},{"$f":"$AG$118","v":"Jekl 80x40x2 (pozink) je součástí dodávky. Musí se pevně přikotvit ke stropu minimálně na 3 místech (u vrat do 10m2 stačí na 2 místech)"}]
[{"$nulls":9},{"$f":" \"(1) \" & $AG$38","v":"(1) NEZBYTNÝ VOLNÝ PROSTOR"},{"$nulls":22},{"$f":"VLOOKUP(AH21,AH21:AR113,$AE$1,FALSE)","v":"Montáž na cihlové zdivo"},"Montáž na cihlové zdivo","mounting on brickwork","Montage auf Mauerwerk und Ziegel","montaż do muru i cegły","montage sur béton","montage op beton","Paigaldus kiviseinale","asennus tiiliseinän","монтаж на бетон"]
[{"$nulls":24},{"$f":"VLOOKUP(AG21,AG2:AR96,$AE$1+1,FALSE)","v":"Montáž na cihlové zdivo"},{"$nulls":7},{"$f":"VLOOKUP(AH22,AH22:AR114,$AE$1,FALSE)","v":"Montáž na porobeton"},"Montáž na porobeton","mounting on cellular concrete","Montage auf Porenbeton oder Gasbeton","montaż do betonu porowatego","montage sur parpaing creux","montage op gasbeton","Paigaldus poorbetoonile","asennus betoniin","монтаж на газобетон"]
[{"$nulls":9},{"$f":"IF(K7=AU1,\"\",\"(2) \"&$AG$49)","v":"(2) nezbytný boční prostor pro motor nebo řetězový pohon"},{"$nulls":22},{"$f":"VLOOKUP(AH23,AH23:AR115,$AE$1,FALSE)","v":"Montáž na opláštění"},"Montáž na opláštění","mounting on insulated cladding","Montage auf ISO-Trapezblechfassade","montaż do płaszcza","montage sur structure métallique  (a fournir par le charpentier)","montage op binnendooscontructie met damwandbeplating","Paigaldus soojustatud seinapaneelile","asennus eristettyyn seinäelementtiin","монтаж на металлокаркас"]
[]
[{"$nulls":9},{"$f":"IF(OR(K7=AU1,K7=AU2,K7=AU3),\"\",\"(3) \"&$AG$50)","v":"(3) montážní plocha pro řídící jednotku. Rozměry najdete v dokumentaci ŘJ."}]
[{"$nulls":9},{"$f":"IF(OR(K7=AU1,K7=AU2,K7=AU3),\"\",\"     \"&$AG$51)","v":"     osa cca 1.400 až 1.500 mm od podlahy"},{"$nulls":22},{"$f":"VLOOKUP(AH26,AH26:AR118,$AE$1,FALSE)","v":"PRÁCE, KTERÉ MUSÍ BÝT PROVEDENY ZÁKAZNÍKEM PŘED MONTÁŽÍ, POKUD NEBYLO DOHODNUTO JINAK"},"PRÁCE, KTERÉ MUSÍ BÝT PROVEDENY ZÁKAZNÍKEM PŘED MONTÁŽÍ, POKUD NEBYLO DOHODNUTO JINAK","WORK TO BE CARRIED OUT BY CUSTOMER, UNLESS IN ADVANCE OTHERWISE IS AGREED IN WRITING.","VORBEREITUNGEN UND ARBEITEN DIE VOM AUFTRAGGEBER ZU ERBRINGEN SIND, AUßER BEI SCHRIFTLICHER VEREINBARUNG IM VORAUS:","PRACE, KTÓRE MUSZĄ ZOSTAĆ WYKONANE PRZEZ KLIENTA PRZED WYKONANIEM MONTAŻU, O ILE NIE UZGODNIONO INACZEJ.","APPROVISIONNEMENT & TRAVAUX INCOMBANT AU MAITRE D'OUVRAGE  (sauf accord contraire)","VOORZIENINGEN EN WERKZAAMHEDEN DOOR OPDRACHTGEVER TE VERZORGEN, TENZIJ VOORAF SCHRIFTELIJK ANDERS IS OVEREENGEKOMEN ","Kliendi poolt tehtavad ettevalmistustööd v.a juhul kui pole kirjalikult teistmoodi kokku lepitud","ASIAKKAAN TEHTÄVÄT TYÖT, ELLEI ETUKÄTEEN KIRJALLISESTI MUUTOIN SOVITTU ","МАТЕРИАЛЫ И ПРОВЕДЕНИЕ РАБОТ ОБЕСПЕЧИВАЮТСЯ КЛИЕНТОМ,ЕСЛИ ИНОЕ НЕ ОГОВОРЕНО ЗАРАНЕЕ В ПИСЬМЕННОЙ ФОРМЕ"]
[{"$nulls":24},{"$f":"VLOOKUP(AG22,AG2:AR96,$AE$1+1,FALSE)","v":"Montáž na porobeton"},{"$nulls":7},"Konstrukční:","Konstrukční:","Constructional :","Bauseits:","Konstrukcyjne:","Structure: ","Bouwkundig:","Ehituslikud:","\nRakenteellinen:","Конструктивно:"]
[{"$nulls":9},{"$f":"IF(OR(K7=AU1,K7=AU2,K7=AU3),\"\",\"(4) \"&$AG$52)","v":"(4) Zásuvka, parametry najdete v dokumentaci produktu"},{"$nulls":22},"Příprava montážních ploch pro vedení vrat a pro pružiny.","Příprava montážních ploch pro vedení vrat a pro pružiny.","Supply and fix mounting frame and mounting surfaces for the rails and the spring packet in case of aerated concrete or sandwichpanels etc.","Ein stählerner Montagerahmen zur Befestigung der vertikalen Laufschienen und des Federpakets bei nicht tragfähigen Flächen wie z.B. Porenbeton, Gasbeton, Isolationspanelen u.s.w..","Przygotowanie powierzchni montażowych dla prowadzenia bramy oraz dla sprężyn.","Préparation de la structure de montage des rails de guidage et des ressorts pour une pose sur panneaux isolants","Een stalen montageframe voor de bevestiging van de verticale looprails en het verenpakket bij niet dragende montagevlakken, zoals gasbeton, isolatiepanelen, sandwichpanelen enz.","Avaettevalmistusraami tarnimine ja paigaldus siinide ja vedrude kinnituseks","Toimittaa ja asentaa asennuskehyksen ja asennuspinnat kiskoille ja jousipaketille tapauksessa jossa kevytbetooni tai sandwich-paneeli jne.","Стальная монтажная рама для установки вертикальных направляющих и пружин в случае не несущих монтажных поверхностей, таких как: газобетон, изоляционные панели, сэндвич-панели и т.д."]
[{"$nulls":32},"Montáž vodorovného vedení může být max. 1 metr od pevné konstrukce.","Montáž vodorovného vedení může být max. 1 metr od pevné konstrukce.","Mounting possibilities for the horizontal rails up to 1 meter above the rails must be provided.","Befestigungsmöglichkeit für die Zwischen- und Endaufhängung der horizontalen Laufschienen bis zu max. 1 m über diesen Laufschienen.","Montaż prowadzenia poziomego można wykonać w oddaleniu maks. 1 metra od konstrukcji stałej.","Lorsque les possibilités de montage des rails horizontaux dépassent ","Bevestigingsmogelijkheid voor de tussen- en eindophanging van de horizontale looprails tot max. 1m boven deze looprails.","Paigaldusruum ülalpool siini max. 1m","Asennus mahdollisuudet vaakakiskoille enintään 1 metrin korkeudella kiskoista pitää olla mahdollista.","Способы крепления для горизонтальных направляющих максимум до 1м над данными направляющими."]
[{"$nulls":9},{"$f":"IF(OR(L8=AV2,L8=AV3,L8=AV4),\"\",\"(5) \"&$AG$36)","v":""},{"$f":"IF(OR(M8=AW2,M8=AW3,M8=AW4),\"\",\"(5) \"&$AG$36)","v":""},null,{"$f":"IF(OR(O8=AY2,O8=AY3,O8=AY4),\"\",\"(5) \"&$AG$36)","v":""},{"$f":"IF(OR(O7=AZ2,O7=AZ3,O7=AZ4),\"\",\"(5) \"&$AG$36)","v":""},{"$nulls":18},"Nezbytné montážní plochy a volný prostor dle nákresu.","Nezbytné montážní plochy a volný prostor dle nákresu.","Necessary mounting surface and free room as shown.","Benötigte Montageflächen und Freiräume gemäß Zeichnung.","Niezbędne powierzchnie montażowe oraz wolna przestrzeń wg rysunku.","Adapter la structure et l' espace disponible selon nos plans de réservations ci-contre","Benodigde montagevlakken en vrije ruimtes, volgens tekening.","Piisav paigaldusruum vastavalt lisatud joonisele","Tarvittava kiinnityspinta ja vapaa tilaa kuvan mukaisesti.","Необходимые монтажные поверхности и свободное пространство в соответствии с чертежом"]
[{"$nulls":32},"Elekrická příprava (pro elektricky ovládaná sekční vrata): ","Elekrická příprava (pro elektricky ovládaná sekční vrata): ","Electrical supply required to be :","Elektrisch (bei elektrisch bedienten Toren):","Przygotowanie elektryczne (dla elektrycznie sterowanej bramy segmentowej) :","Alimentation electrique  (pour porte motorisée) :","Elektrisch: (bij elektrisch bediende deuren)","Elektriliselt avatavate uste jaoks","Sähkönsyöttö tarvittu:","Электрика (для ворот с электрическим управлением):"]
[{"$nulls":9},{"$f":"IF(OR(K14=AU8,K14=AU9,K14=AU10),\"\",\"(4) \"&$AG$52)","v":""},{"$nulls":14},{"$f":"VLOOKUP(AG23,AG2:AR96,$AE$1+1,FALSE)","v":"Montáž na opláštění"},{"$nulls":7},"Zásuvka CEE 16 A, 5P, 400 V = zásuvka s nulovým a zemnícím vodičem","Zásuvka CEE 16 A, 5P, 400 V = zásuvka s nulovým a zemnícím vodičem","400V/230V 3 phase neutral and earth terminating, provided by euro plug socket.","Stromzufuhr 400V/230V mittels Eurosteckdose, 3 Phasen+0+PE max.1 meter vom Schaltkasten.","Gniazdo CEE 16 A, 5P, 400 V = gniazdo z przewodnikiem zerowym i uziemiającym","400V triphase T+N avec prise de raccordement CEE 16 A","Voeding  400V/230V door middel van eurostopcontact, 3 fase+0+PE max. ","Toite vedu ajamini - 400V/230V, 3 faasi","400V / 230V 3 vaihe+neutraali ja maadoitus tarjotuna Euro pistorasiasta.","Питание 400V/230V посредством заземленной евророзетки, 3 фазы+0+РЕ "]
[{"$nulls":32},"Zajistit vhodnou montážní plochu pro řídící jednotku motoru 250 x 400 mm","Zajistit vhodnou montážní plochu pro řídící jednotku motoru 250 x 400 mm","Provide suitable mounting surface for control panel, dimensions 250 x 400 mm","Montagefläche für Schaltkasten, Abmessungen 250 x 400 mm","Zapewnić odpowiednią powierzchnię montażową dla jednostki sterującej silnika 250x400","Assurer une surface de montage adéquate pour le coffret de commande du moteur L.250 x H.400 mm","Montagevlak t.b.v. schakelkast, afmetingen 250 x 400 mm","Kontrolleri jaoks piisava paigaldusruumi tagamine 250x400 mm","Tarjoa sopivan kiinnityspinnan  ohjauspaneelia varten ,mitat 250 x 400 mm","необходимо обеспечить монтажную поверхность для панели управления, размеры 250х400 мм"]
[]
[]
[{"$nulls":32},{"$f":"VLOOKUP(AH36,AH36:AR128,$AE$1,FALSE)","v":"NEZBYTNÁ MONTÁŽNÍ PLOCHA"},"NEZBYTNÁ MONTÁŽNÍ PLOCHA","NECESSARY MOUNTING SURFACE","BENÖTIGTER MONTAGEFLÄCHEN","NIEZBĘDNA POWIERZCHNIA MONTAŻOWA","SURFACE NECESSAIRE DE MONTAGE","BENODIGDE MONTAGEVLAKKEN","Vajalik paigaldusruum","TARVITTAVA KIINNITYSPINTA","необходимая монтажная поверхность"]
[{"$nulls":4},{"$f":"VLOOKUP(AG7,AG2:AR96,$AE$1+1,FALSE)","v":"ŘEZ B-B"},{"$nulls":27},{"$f":"VLOOKUP(AH37,AH37:AR129,$AE$1,FALSE)","v":"DODATEČNÉ MONTÁŽNÍ PLOCHY PRO KONZOLY"},"DODATEČNÉ MONTÁŽNÍ PLOCHY PRO KONZOLY","EXTRA PLANES AT WEAK SURFACES","MONTAGEFLÄCHE FÜR DEN MOTOR","Dodatkowych obszarach montażu konsoli","FACILITÉ DE MONTAGE ADDITIONNEL POUR CONSOLE","EXTRA VLAKKEN BIJ ZWAKKE ONDERGROND","Lisaplaadid nõrgale pinnale","LISÄ ASENNUSTILA ","металлокаркас из стальной профильной трубы"]
[{"$nulls":11},{"$f":"VLOOKUP(AG42,AG2:AR96,$AE$1+1,FALSE)","v":"sklon podlahy"},{"$nulls":20},{"$f":"VLOOKUP(AH38,AH38:AR130,$AE$1,FALSE)","v":"NEZBYTNÝ VOLNÝ PROSTOR"},"NEZBYTNÝ VOLNÝ PROSTOR","NECESSARY FREE ROOM","BENÖTIGTER FREIRAUM","niezbędne miejsce","ESPACE LIBRE NECESSAIRE","BENODIGDE VRIJE RUIMTE","Vajalik vaba ruum ","TARVITTAVA VAPAA TILA","необходимое свободное пространство"]
[{"$nulls":32},{"$f":"VLOOKUP(AH39,AH39:AR131,$AE$1,FALSE)","v":"VOLNÝ PROSTOR PRO MOTOR/ŘETĚZ.PŘEVOD"},"VOLNÝ PROSTOR PRO MOTOR/ŘETĚZ.PŘEVOD","EXTRA FREE ROOM FOR MOTOR/CHAIN","EXTRA FREIRAUM FÜR MOTOR/KETTE","Wolnego miejsca na silnik, napęd łańcuchowy","ESPACE LIBRE POUR MOTEUR / CHAINE DE LEVAGE.","EXTRA VRIJE RUIMTE BIJ MOTOR/KETTING","Lisa vaba ruum mootorile/ketile","LISÄTILA MOOTORIA/KETJUA VARTEN","дополнительное свободное пространство для двигателя/подъемной цепи"]
[]
[]
[{"$nulls":32},{"$f":"VLOOKUP(AH42,AH42:AR134,$AE$1,FALSE)","v":"sklon podlahy"},"sklon podlahy","fall of the floor","Bodenneigung","nachylenie podłogi","réservations seuil béton","vloer met waterkering","pinna langus","kaltevuus","пол с водоотводом"]
[{"$nulls":32},{"$f":"VLOOKUP(AH43,AH43:AR135,$AE$1,FALSE)","v":"směrem ven"},"směrem ven","outside","nach aussen","w kierunku na zewnątrz",{"$f":"\"\"","v":""},"buitenzijde","väljaspool","ulkopuoli"]
[{"$nulls":32},{"$f":"VLOOKUP(AH44,AH44:AR136,$AE$1,FALSE)","v":"sklon 3%"},"sklon 3%","fall 3%","Gefälle 3%","nachylenie 3%","PENTE 3%","afschot 3%","langus 3%","kaltevuus 3%","наклон 3%"]
[{"$nulls":32},{"$f":"VLOOKUP(AH45,AH45:AR137,$AE$1,FALSE)","v":"směrem ven"},"směrem ven","internal level","Wasserschenkel","w kierunku na zewnątrz","réservations seuil béton","niveau binnen","Sisemine tasand","sisäinen taso"]
[{"$nulls":17},{"$f":"VLOOKUP(AG36,AG2:AR96,$AE$1+1,FALSE)","v":"NEZBYTNÁ MONTÁŽNÍ PLOCHA"},{"$nulls":5},{"$f":"VLOOKUP(AG38,AG4:AR97,$AE$1+1,FALSE)","v":"NEZBYTNÝ VOLNÝ PROSTOR"},{"$nulls":8},{"$f":"VLOOKUP(AH46,AH46:AR138,$AE$1,FALSE)","v":"sklon podlahy"},"sklon podlahy","floor with raised","Boden mit","nachylenie podłogi",{"$f":"\"\"","v":""},"vloer met  ","põrand koos tõstetud sisetasandiga","lattia nostetulla","пол с наклоном 3%"]
[]
[]
[{"$nulls":32},{"$f":"VLOOKUP(AH49,AH49:AR141,$AE$1,FALSE)","v":"nezbytný boční prostor pro motor nebo řetězový pohon"},"nezbytný boční prostor pro motor nebo řetězový pohon","necessary side room for electrical- or hauling chain operation","Benötigter Freiraum bei Elektro- oder Haspelkettenbedienung ","niezbędna przestrzeń boczna dla silnika lub napędu łańcuchowego","écoinçon minimum requis pour le moteur ou treuil a chaîne","benodigde vrije ruimte voor elektrische- of ketting bediening","vajalik küljeruum mootori või tali puhul","tarvittava tila mootori- tai ketjunostolle ","необходимое боковое пространство для электропривода или цепного редуктора"]
[null,{"$f":"VLOOKUP(AG8,AG2:AR96,$AE$1+1,FALSE)","v":"POZNÁMKA:"},{"$nulls":15},{"$f":"VLOOKUP(AG26,AG2:AR96,$AE$1+1,FALSE)","v":"PRÁCE, KTERÉ MUSÍ BÝT PROVEDENY ZÁKAZNÍKEM PŘED MONTÁŽÍ, POKUD NEBYLO DOHODNUTO JINAK"},{"$nulls":14},{"$f":"VLOOKUP(AH50,AH50:AR142,$AE$1,FALSE)","v":"montážní plocha pro řídící jednotku. Rozměry najdete v dokumentaci ŘJ."},"montážní plocha pro řídící jednotku. Rozměry najdete v dokumentaci ŘJ.","Mounting surface for control panel. See product documentation for dimensions","Montagefläche für Antriebsteuerung. Siehe Produktdokumentation für Abmessungen","Powierzchnia montażowa dla jednostki sterującej. Wymiary można znaleźć w dokumentacji produktu","Surface de montage pour le Coffret de commande","Montagevlak t.b.v. Zie productdocumentatie voor afmetingen","Kontrolli paigaldusala. Vaata toote dokumentatsiooni mõõtmete kohta","Kiinnityspinta ohjauspaneelia varten. Katso mitat tuoteasiakirjoista","монтажная поверхность для блока управления. Размеры см. в документации на изделие"]
[null,{"$f":"VLOOKUP(AG55,AG2:AR96,$AE$1+1,FALSE)","v":"Stěna nad překladem, stěny vedle otvoru a plochy pro montáž konzol musí být rovné a v jedné rovině."},{"$nulls":30},{"$f":"VLOOKUP(AH51,AH51:AR143,$AE$1,FALSE)","v":"osa cca 1.400 až 1.500 mm od podlahy"},"osa cca 1.400 až 1.500 mm od podlahy","center line ca 1.400 -1.500 mm above floor","Achse ca. 1.400 bis 1.500 mm vom Boden","oś ok. 1.400 do 1.500 mm od podłogi","axe d'env. 1 400 a 1 500 mm a compter ","hartlijn ca. 1.400 - 1.500 boven de vloer","Keskjoon ca 1400-1500 mm põrandast","keskiviiva ca 1,400 -1,500 mm: n korkeudella lattiasta","осевая линия примерно 1.400-1.500 мм над уровнем пола"]
[null,{"$f":"VLOOKUP(AG56,AG2:AR96,$AE$1+1,FALSE)","v":"Otvor musí být svislý a obdélníkový."},{"$nulls":15},{"$f":"VLOOKUP(AG27,AG2:AR96,$AE$1+1,FALSE)","v":"Konstrukční:"},{"$nulls":14},{"$f":"VLOOKUP(AH52,AH52:AR144,$AE$1,FALSE)","v":"Zásuvka, parametry najdete v dokumentaci produktu"},"Zásuvka, parametry najdete v dokumentaci produktu","Electric outlet parameters can be found in the product documentation.","Die Parameter der Steckdosen sind in der Produktdokumentation zu finden.","Parametry gniazdka elektrycznego można znaleźć w dokumentacji produktu.","Les paramètres des prises électriques sont indiqués dans la documentation du produit.","De parameters van het stopcontact zijn te vinden in de productdocumentatie.","Elektripistiku parameetrid leiate toote dokumentatsioonist.","Pistorasian parametrit löytyvät tuoteasiakirjoista.","Параметры электрической розетки приведены в документации на изделие.","Параметры электрической розетки приведены в документации на изделие."]
[null,{"$f":"VLOOKUP(AG57,AG2:AR96,$AE$1+1,FALSE)","v":"Podlaha musí být rovná a vodorovná."},{"$nulls":15},{"$f":"VLOOKUP(AG28,AG2:AR96,$AE$1+1,FALSE)","v":"Příprava montážních ploch pro vedení vrat a pro pružiny."}]
[null,{"$f":"AG127","v":"průjezdná výška může být snížena příslušenstvím nainstalovaným na vnitřní straně vratového křídla (madlo, výztuha, extra nízký práh apod.)"}]
[{"$nulls":17},{"$f":"VLOOKUP(AG29,AG3:AR96,$AE$1+1,FALSE)","v":"Montáž vodorovného vedení může být max. 1 metr od pevné konstrukce."},{"$nulls":14},{"$f":"VLOOKUP(AH55,AH55:AR147,$AE$1,FALSE)","v":"Stěna nad překladem, stěny vedle otvoru a plochy pro montáž konzol musí být rovné a v jedné rovině."},"Stěna nad překladem, stěny vedle otvoru a plochy pro montáž konzol musí být rovné a v jedné rovině.","The rear face of the lintel and the door jambs, as well as the surface for the spring packet must be levelled and in line.","Die hinteren Seiten der Sturze und Pfeiler, sowie die Montagefläche für das Federpaket müssen eben und auf einer Linie liegen.","Ściany tłumaczenia, obok ściany otworu oraz wszystkie obszary i zbiórki musi być kolor.","La surface d'appui pour la pose de la porte sectionnelle doit etre dans le meme plan et verticale.","De achterkanten van de penanten, de latei en de montagevlakken van het verenpakket dienen vlak en in één lijn te liggen.","Kõik paigalduspinnad peavad olema ühes tasapinnas ja loodis","Ylä ja sivukarmien sekä jousipaketin asennuspinnan pitää olla tasaisia ja samassa linjassa","Монтажная поверхность должна быть ровной и распологаться в одной вертикальной плоскости"]
[null,{"$f":"VLOOKUP(AG60,AG2:AR96,$AE$1+1,FALSE)","v":"Rozměry jsou v mm"},{"$nulls":30},{"$f":"VLOOKUP(AH56,AH56:AR148,$AE$1,FALSE)","v":"Otvor musí být svislý a obdélníkový."},"Otvor musí být svislý a obdélníkový.","Furthermore the opening must be plumb and square.","Im übrigen müssen die lichten Masse eben und rechtwinklig sein.","Otwór musi być pionowy i prostokątny.","L'ouverture de la baie doit etre parfaitement de niveau et d'equerre.","Tevens moet de dagmaat vlak en haaks zijn.","Ava peab olema täpne ja nelinurkne","Lisäksi oviaukon pitää olla pysty- ja vaakasuora sekä nelikulmainen.","Проем также должен быть ровным и прямоугольным."]
[null,"W =",{"$f":"VLOOKUP(AG61,AG2:AR96,$AE$1+1,FALSE)","v":"Šířka otvoru"},null,null,{"$f":"IF(K3=\"\",\"W \",\"W = \" &K3)","v":"W "},{"$f":"IF(K7=\"\",AG101 & \"\",AG101& \" : \" & \"  \" &K7)","v":"Ovládání"},{"$nulls":5},{"$f":"VLOOKUP(AG81,AG6:AR99,$AE$1+1,FALSE)","v":"Volný prostor nad překladem"},{"$nulls":4},{"$f":"VLOOKUP(AG30,AG2:AR96,$AE$1+1,FALSE)","v":"Nezbytné montážní plochy a volný prostor dle nákresu."},{"$nulls":14},{"$f":"VLOOKUP(AH57,AH57:AR149,$AE$1,FALSE)","v":"Podlaha musí být rovná a vodorovná."},"Podlaha musí být rovná a vodorovná.","Floor area must be flat and horizontal.","Der Fussboden muss glatt und waagerecht sein.","Podłoga musi być równa i pozioma.","Le sol doit etre parfaitement horizontal et plan.","De afgewerkte vloer dient vlak en waterpas te liggen.","Põrandapind peab olema sile ja horisontaalne","Lattian pitää olla tasainen ja vaakasuora.","Обработанный пол должен быть ровным и без склонов."]
[null,"H =",{"$f":"VLOOKUP(AG62,AG3:AR96,$AE$1+1,FALSE)","v":"Výška otvoru"},null,null,{"$f":"IF(K5=\"\",\"H \",\"H = \" &K5)","v":"H "},{"$f":"IF(K7=\"\",\"L/R\",\"L\")","v":"L/R"},{"$f":"IF(K7=\"\",$AG$123,$AG$67)","v":"Strana motoru"},{"$nulls":3},{"$f":"IF(K7=\"\",\"min. 450\",F61)","v":"min. 450"},"F",null,{"$f":" \"min.\"","v":"min."},{"$f":"IF(K9=AG122,270, 230)","v":230},null,{"$f":"VLOOKUP(AG31,AG2:AR96,$AE$1+1,FALSE)","v":"Elekrická příprava (pro elektricky ovládaná sekční vrata): "}]
[null,"F = ",{"$f":"VLOOKUP(AG65,AG5:AR98,$AE$1+1,FALSE)","v":"Volný prostor nad překladem"},null,null,{"$f":"IF(K5=\"\",\"F \",\"F = \" &P58)","v":"F "},{"$f":"IF(K7=\"\",\"L/R\",\"R\")","v":"L/R"},{"$f":"IF(K7=\"\",$AG$124,$AG$68)","v":"Druhá strana"},{"$nulls":3},{"$f":"IF(K7=\"\",\"min. 180\",F62)","v":"min. 180"},{"$f":"AG64","v":"Výška stropu"},{"$nulls":4},{"$f":"AG52","v":"Zásuvka, parametry najdete v dokumentaci produktu"}]
[null,"A=",{"$f":"AG82","v":"Osa hřídele nad překladem"},null,null,{"$f":"IF(K7=\"\",\"A\",\"A = \" &P62)","v":"A"},{"$f":"IF(G58=\"\",\"\",\"D\")","v":"D"},{"$f":"IF(G58=\"\",\"\",AG78)","v":"Hloubka vedení"},null,null,{"$f":"IF(K7=AG104,\"H + 1100\",\"H  + 1100\")","v":"H  + 1100"},{"$f":"IF(OR(K5=\"\",K7=\"\"),\"\",K5+1100)","v":""},"E",null,"H + F",{"$f":"IF(OR(K3=\"\",K5=\"\",P58=\"\"),\"\",K5+P58)","v":""},null,{"$f":"AG50","v":"montážní plocha pro řídící jednotku. Rozměry najdete v dokumentaci ŘJ."},{"$nulls":14},{"$f":"VLOOKUP(AH60,AH60:AR152,$AE$1,FALSE)","v":"Rozměry jsou v mm"},"Rozměry jsou v mm","UNITS in mm","MASSE in mm","Wymiary podane w mm","MESURES en mm","MATEN in mm","Mõõdud mm","YKSIKKÖ mm","размеры в мм:"]
[null,"L = ",{"$f":"VLOOKUP(AG67,AG7:AR100,$AE$1+1,FALSE)","v":"Volný prostor vlevo"},null,null,{"$f":"IF(OR(K3=\"\",K7=\"\"),\"L\",\"L = \" &Obrázky!$Z$16)","v":"L"},{"$f":"IF(OR(L60<=3000,K7=\"\"),AG79,\"\")","v":"Kotvící bod, když je"},null,{"$f":"IF(OR(L60<=3000,K7=\"\"),\"D<=3000\",\"\")","v":"D<=3000"},{"$nulls":3},{"$f":"AG82","v":"Osa hřídele nad překladem"},{"$nulls":4},{"$f":"VLOOKUP(AG85,AG2:AR96,$AE$1+1,FALSE)","v":"Sestavil:"},null,{"$f":"VLOOKUP(AG86,AG2:AR96,$AE$1+1,FALSE)","v":"Upravil:"},null,{"$f":"VLOOKUP(AG87,AG2:AR96,$AE$1+1,FALSE)","v":"Schváleno - datum:"},null,{"$f":"VLOOKUP(AG88,AG2:AR96,$AE$1+1,FALSE)","v":"Název souboru:"},null,{"$f":"VLOOKUP(AG89,AG2:AR96,$AE$1+1,FALSE)","v":"Datum:"},{"$f":"VLOOKUP(AG90,AG2:AR96,$AE$1+1,FALSE)","v":"Měřítko"},{"$f":"VLOOKUP(AG91,AG2:AR96,$AE$1+1,FALSE)","v":"Formát: "},{"$nulls":4},"Šířka otvoru","Šířka otvoru","Opening width","Lichte Breite","Szerokość otworu","LARGEUR DE BAIE","Dagmaat breedte","Ava laius","Oviaukon leveys","ширина проема"]
[null,"R = ",{"$f":"VLOOKUP(AG68,AG8:AR101,$AE$1+1,FALSE)","v":"Volný prostor vpravo"},null,null,{"$f":"IF(OR(K3=\"\",K7=\"\"),\"R\",\"R = \"&Obrázky!Z17)","v":"R"},{"$f":"IF(OR(L60<=3000,K7=\"\"),\"X\",\"\")","v":"X"},{"$f":"IF(OR(L60<=3000,K7=\"\"),VLOOKUP(AG80,AG8:AR101,$AE$1+1,FALSE),\"\")","v":"Kotvící bod"},null,null,{"$f":"IF(K7=\"\",\"H\",IF(L60<=3000,\"H \",\"\"))","v":"H"},{"$f":"IF(L60<3000,IF(OR(K5=\"\",K7=\"\"),\"\",K5),\"\")","v":""},"A",null,null,100,null,"T.Horáček",null,"T.Horáček",null,"2024-06-26",null,"STP",null,"2024-04-03","-","A3",{"$nulls":4},"Výška otvoru","Výška otvoru","Opening height","Lichte Höhe","Wysokość otworu","HAUTEUR DE BAIE","Dagmaat hoogte","Ava kõrgus","Oviaukon korkeus","высота проема"]
[null,"D = ",{"$f":"VLOOKUP(AG69,AG10:AR102,$AE$1+1,FALSE)","v":"Hloubka vedení"},null,null,{"$f":"IF(OR($K$3=0,$K$5=0,$K$7=\"\"),\"D\", \"D = \" & $L$60)","v":"D"},{"$f":"IF(K5=\"\",AG79,IF(AND(L60>3000,L60<=4500),AG79,\"\"))","v":"Kotvící bod, když je"},null,{"$f":"IF(K7=\"\",\"3000<D<=4500\",IF(AND(L60>3000,L60<=4500),\"3000<D<=4500\",\"\"))","v":"3000<D<=4500"},{"$nulls":3},{"$f":"AG116","v":"Kotvící body pro jekl"},{"$nulls":4},"http://door-documents.com/en/indy-installation-drawing-LL-I",{"$nulls":3},{"$f":"VLOOKUP(AG92,AG2:AR96,$AE$1+1,FALSE)","v":"STAVEBNÍ PŘIPRAVENOST                       Vedení pro nízký překlad (LL-I)"},{"$nulls":10},"High lift","High lift","High lift","Höhe der Führung","Wyciąg wysoki","LEEVE HAUTE","High lift","Kõrge tõste","korkeanosto","Высокий подъем"]
[null,"X =",{"$f":"VLOOKUP(AG70,AG14:AR104,$AE$1+1,FALSE)","v":"Kotvící bod č. 1"},null,null,{"$f":"Obrázky!Z19","v":"X"},{"$f":"IF(K7=\"\",\"X\",IF(AND(L60>3000,L60<=4500),\"X\",\"\"))","v":"X"},{"$f":"IF(K7=\"\",VLOOKUP(AG70,AG8:AR101,$AE$1+1,FALSE),IF(AND(L60>3000,L60<=4500),VLOOKUP(AG70,AG8:AR101,$AE$1+1,FALSE),\"\"))","v":"Kotvící bod č. 1"},null,null,{"$f":"IF(K7=\"\",\"H\",IF(AND(L60>3000,L60<=4500),\"H\",\"\"))","v":"H"},{"$f":"IF(OR(K5=\"\",K7=\"\"),\"\",IF(AND(L60>3000,L60<=4500),IF(OR(K7=\"\"),\"\",K5),\"\"))","v":""},"S",null,"H+1020",{"$f":"IF(K5=\"\",\"\",K5+1020)","v":""},{"$nulls":16},"Výška stropu","Výška stropu","Interior height","Höhe Innenraum","Wysokość stropu","HAUTEUR SOUS PLAFOND","Hoogte binnenruimte","Sisemine kõrgus","sisäkorkeus","высота внутри помещения до перекрытий"]
[null,"Y = ",{"$f":"VLOOKUP(AG71,AG15:AR105,$AE$1+1,FALSE)","v":"Kotvící bod č. 2"},null,null,{"$f":"Obrázky!Z20","v":"Y"},{"$f":"IF(K7=\"\",\"Y\",IF(AND(L60>3000,L60<=4500),\"Y\",\"\"))","v":"Y"},{"$f":"IF(K7=\"\",VLOOKUP(AG71,AG8:AR101,$AE$1+1,FALSE),IF(AND(L60>3000,L60<=4500),VLOOKUP(AG71,AG8:AR101,$AE$1+1,FALSE),\"\"))","v":"Kotvící bod č. 2"},null,null,{"$f":"IF(K5=\"\",\"1/2 X\",IF(AND(L60>3000,L60<=4500),\"1/2 X\",\"\"))","v":"1/2 X"},{"$f":"IF(OR(K5=\"\"),\"\",IF(AND(L60>3000,L60<=4500),IF(OR(K7=\"\"),\"\",ROUND(L64/2,0)),\"\"))","v":""},{"$nulls":20},"Volný prostor nad překladem","Volný prostor nad překladem","Free room above lintel","Freiraum über Sturz","Wolna przestrzeń nad nadprożem","RETOMBEE DE LINTEAU DISPONIBLE","Vrije ruimte boven latei","Vaba ruum laeni","vapaa ylätila","свободное пространство над проемом"]
[null,"Y = ",{"$f":"VLOOKUP(AG72,AG15:AR105,$AE$1+1,FALSE)","v":"Kotvící bod č. 3"},null,null,{"$f":"Obrázky!Z21","v":"Y2"},{"$f":"IF(K5=\"\",VLOOKUP(AG79,AG6:AR99,$AE$1+1,FALSE),IF(L60>4500,VLOOKUP(AG79,AG6:AR99,$AE$1+1,FALSE),\"\"))","v":"Kotvící bod, když je"},null,{"$f":"IF(K5=\"\",\"D>4500\",IF(L60>4500,\"D>4500\",\"\"))","v":"D>4500"},{"$nulls":23},"Výška montážní plochy nad otvorem","Výška montážní plochy nad otvorem","Height of frame above opening","Höhe über Montagefläche Loch","Wysokość powyżej otworu montażowego powierzchni","HAUTEUR AU-DESSUS DU TROU DE SURFACE DE MONTAGE","Hoogte frame boven latei","Raami kõrgus ava kohal","Rungon korkeus oviaukon yläpuolella.","высота конструкции ворот над проемом"]
[null,"S =",{"$f":"AG116","v":"Kotvící body pro jekl"},null,null,{"$f":"Obrázky!Z22","v":"S"},{"$f":"IF(L60>4500,\"X\",\"\")","v":"X"},{"$f":"IF(L60>4500,VLOOKUP(AG72,AG11:AR104,$AE$1+1,FALSE),\"\")","v":"Kotvící bod č. 3"},null,{"$f":"IF($K$7=$AG$102,$L$57,$L$60)","v":""},{"$f":"IF(L60>4500,\"H\",\"\")","v":"H"},{"$f":"IF(K5=\"\",\"\",IF(L60>4500,K5,\"\"))","v":""},{"$nulls":20},"Volný prostor vlevo","Volný prostor vlevo","Free side room left","Freiraum LINKS","Wolna przestrzeń W LEWO","ECOINCON GAUCHE","Vrije zijruimte links","Vaba küljeruum vasakul","vapaa tila vasemalla","свободное боковое пространство СЛЕВА"]
[{"$nulls":6},{"$f":"IF(L60>4500,\"Y\",\"\")","v":"Y"},{"$f":"IF(L60>4500,VLOOKUP(AG73,AG12:AR105,$AE$1+1,FALSE),\"\")","v":"Volný prostor nad překladem"},null,{"$f":"IF($K$7=$AG$102,$L$57,$L$60)","v":""},{"$f":"IF(L60>4500,\"(X/3)*2\",\"\")","v":"(X/3)*2"},{"$f":"IF(K5=\"\",\"\",IF(L60>4500,ROUND((L67/3)*2,0),\"\"))","v":""},{"$nulls":9},{"$f":"AG13","v":"VEDENÍ PRO NÍZKÝ PŘEKLAD (LL-I)"},{"$nulls":3},{"$f":"VLOOKUP(AG95,AG2:AR96,$AE$1+1,FALSE)","v":"Kód:"},{"$f":"VLOOKUP(AG96,AG2:AR96,$AE$1+1,FALSE)","v":"Verze:"},{"$nulls":5},"Volný prostor vpravo","Volný prostor vpravo","Free side room right","Freiraum RECHTS","Wolna przestrzeń W PRAWO","ECOINCON DROITE","Vrije zijruimte rechts","Vaba küljeruum paremal","vapaa tila oikealla","свободное боковое пространство СПРАВА"]
[{"$nulls":6},{"$f":"IF(L60>4500,\"Y2\",\"\")","v":"Y2"},{"$f":"IF(L60>4500,VLOOKUP(AG74,AG13:AR106,$AE$1+1,FALSE),\"\")","v":"Ruční ovládání"},null,{"$f":"IF($K$7=$AG$102,$L$57,$L$60)","v":""},{"$f":"IF(L60>4500,\"X/3\",\"\")","v":"X/3"},{"$f":"IF(K5=\"\",\"\",IF(L60>4500,ROUND(L67/3,0),\"\"))","v":""},{"$nulls":13},"055-1",2426,{"$nulls":5},"Hloubka vedení","Hloubka vedení","Back room","Einbautiefe","Głębokość prowadzenia poziomego","REFOULEMENT HORS-TOUT","Inbouwdiepte","Sügavus","tila takana","монтажная глубина"]
[{"$nulls":32},"Kotvící bod č. 1","Kotvící bod č. 1","1 st hanging point","1. Aufhängepunkt","Punkt mocowania nr 1","POINT D'ANCRAGE 1 SUSPENTE","1e ophangpunt","1.kinnituskoht","1. ripustuspiste","1 точка крепления горизонтальных направляющих"]
[{"$nulls":32},"Kotvící bod č. 2","Kotvící bod č. 2","2 nd hanging point","2. Aufhängepunkt","Punkt mocowania nr 2","POINT D'ANCRAGE 2 SUSPENTE","2e ophangpunt","2.kinnituskoht","2. ripustuspiste","2 точка крепления горизонтальных направляющих"]
[{"$nulls":32},"Kotvící bod č. 3","Kotvící bod č. 3","3 rd hanging point","3. Aufhängepunkt","Punkt mocowania nr 3","POINT D'ANCRAGE 3 SUSPENTE","3e ophangpunt","3. kinnituskohta","3. ripustuspiste","3 точка крепления горизонтальных направляющих"]
[{"$nulls":32},{"$f":"VLOOKUP(AH73,AH73:AR164,$AE$1,FALSE)","v":"Volný prostor nad překladem"},"Volný prostor nad překladem","Free room above mounting surface","Freiplatz auf der Mountageplatz","Wolny przestrzeń nad nadproźem","Espace au-dessus de la surface de montage","Ruimte boven montagevlak","Vaba ruum ülalpool paigalduspinda","Vapaa tila asennuspisten kohdalla","технологический зазор"]
[{"$nulls":32},{"$f":"VLOOKUP(AH74,AH74:AR165,$AE$1,FALSE)","v":"Ruční ovládání"},"Ruční ovládání","Manually operated","Handbedienung","Sterowanie ręczne","PORTE MANUELLE","Handbediend","Käsitsi avatav","Käsikäyttöinen","ручное управление"]
[{"$nulls":32},"Obě strany","Obě strany","Both sided","Beide Seiten","Obie strony","LES 2 COTES","Beide zijden","Mõlemal pool","\nKaksipuoleinen","обе стороны"]
[{"$nulls":32},"Ovládání elektricky nebo řetězovým převodem","Ovládání elektricky nebo řetězovým převodem","Electrical or hauling chain operated","Elektrisch- oder Haspelkettenbedient","Sterowanie elektr. lub za pom. przekł. łańc.","PORTE MOTORISEE OU AVEC TREUIL A CHAINE","Elektrisch- of handketting bediend","Elektriliselt või taliga avatav","Sähkö- tai ketjukäytöinen","электрическое управление или с помощью цепи"]
[{"$nulls":32},"Motor nebo řetěz. př.","Motor nebo řetěz. př.","Motor or chain side","Motor-oder Kettenseite","Silnik lub przekł. łańc.","ECOINCON LIBRE A COTE DE MOTEUR","Motor- of kettingzijde","Mootori või tali pool","Mootorin tai ketjun puolinen","сторона цепи или мотора"]
[{"$nulls":32},"Hloubka vedení","Hloubka vedení","Back room","Einbautiefe","Głębokość prowadzenia","REFOULEMENT HORS-TOUT","Inbouwdiepte","Sügavus","Tila takana","монтажная глубина"]
[{"$nulls":32},"Kotvící bod, když je","Kotvící bod, když je","Hanging point if","Aufhängepunkte, wenn","Punkty mocowania, jeżeli","POINT D'ANCRAGE DES SUSPENTES, SI","Ophangpunt, als","Kinnituskoht, kui ","Ripustuspiste jos","точки крепления горизонтальных направляющих, если"]
[{"$nulls":32},"Kotvící bod","Kotvící bod","Hanging point","Aufhängepunkte","Punkty mocowania","POINT D'ANCRAGE DES SUSPENTES","Ophangpunt","Kinntuskoht","Ripustuspiste","точка крепления"]
[{"$nulls":32},"Volný prostor nad překladem","Volný prostor nad překladem","Free room above lintel","Freiraum über Sturz","Wolna przestrzeń nad nadprożem (min.)","RETOMBEE DE LINTEAU DISPONIBLE","Vrije ruimte boven latei","Vaba ruum sillusest  laeni","Tila oviaukon päällä","свободное пространство над проемом"]
[{"$nulls":32},"Osa hřídele nad překladem","Osa hřídele nad překladem","Height of shaft above lintel","Mitte Achse zum Sturz","Oś wału nad nadprożem","POSITIONNEMENT AXE DE l'ARBRE DE LINTEAU","Center as boven latei","Kesktelg","Akseli ovipalkkin päällä","центральная ось вала"]
[]
[]
[{"$nulls":32},"Sestavil:","Sestavil:","Designed by:","Aufgestellt:","Wykonał:","DESSINE PAR:","Getekend door:","Joonestatud:","\nSuunnitellut:","спроектировано:"]
[{"$nulls":32},"Upravil:","Upravil:","Checked by","Bereinigt:","Skorygował:","MODIFIE PAR:","Gecontroleerd door:","Kontrollitud:","Tarkistanut","проверил:"]
[{"$nulls":32},"Schváleno - datum:","Schváleno - datum:","Approved by - date:","Bereinigt am:","Skorygowano dnia:","MODIFIE LE (DATE):","Goedgekeurd datum:","Kinnitatud:","\nHyväksytty - päivämäärä:","одобрил-дата:"]
[{"$nulls":32},"Název souboru:","Název souboru:","File name:","Dateiname:","Nazwa pliku:","TITRE:","Bestandsnaam","Faili nimi:","\nTiedoston nimi:","навание файла:"]
[{"$nulls":32},"Datum:","Datum:","Date:","Datum:","Data:","DATE:","Datum:","Kuupäev:","Päivämäärä:","дата:"]
[{"$nulls":32},"Měřítko","Měřítko","Scale:","Massst.:","Podział.:","ECHELLE:","Schaal:","Mõõtkava:","Mittakaava:","шкала:"]
[{"$nulls":32},"Formát: ","Formát: ","Sheet:","Format:","Format:","FORMAT:","Sheet:","Formaat:","Lista:","лист:"]
[{"$nulls":32},"STAVEBNÍ PŘIPRAVENOST                       Vedení pro nízký překlad (LL-I)","STAVEBNÍ PŘIPRAVENOST                       Vedení pro nízký překlad (LL-I)","INSTALLATION DRAWING                            LOW LIFT SYSTEM CABLES INSIDE               (LL-I)","BAUBEREITSCHAFT                           NIEDRIGSTURZ BESCHLAG (LL-I)","PRZYGOTOWANIE KONSTRUKCYJNE                           PROWADZENIE DLA NIESKIEGO NADPROŻA (LL-I)","PLAN DE RESERVATIONS & ENCOMBREMENTS                                      LEVEE REDUITE (LL-I)","LAAG PLAFONDSYSTEEM KABELS BINNENDOOR (LL-I)","Paigaldusjoonis madaltõstele, trossid sees (LL-I)","ASENNUSPIIRUSTUS MATALANOSTO VAIJERIT SISÄLLÄ (LL-I)","МОНТАЖНЫЙ ЧЕРТЕЖ СИСТЕМА С НИЗКИМ ПОДЪЕМОМ, ТРОСЫ ВНУТРИ (LL-I)"]
[{"$nulls":32},"pružiny nad překladem ","pružiny nad překladem ","springs above lintel "," Federn oberhalb des Sturzes ","sprężyny nad nadprożem ","RESSORTS AVANTS DEPORTES DU LINTEAU","verenpakket boven latei","vedrud ava kohal","jouset ovipalkkin päällä","нижнее расположение вала"]
[{"$nulls":32},"VERTIKÁLNÍ SYSTÉM","VERTIKÁLNÍ SYSTÉM","VERTICAL LIFT SYSTEM","VERTIKALER BESCHLAG (VL-T)","PROWADZENIE PIONOWE (VL-T)","LEVEE VERTICALE (VL)","VERTICAAL PLAFONDSYSTEEM"]
[{"$nulls":32},"Kód:","Kód:","Code:","Kode:","Kod:","CODE:","Nr.:","Kood:","Koodi:","код:"]
[{"$nulls":32},"Verze:","Verze:","Version:","Version:","Wersja:","VERSION:","Versie:","Versioon:","Versio:","версия:"]
[{"$nulls":32},"NENÍ POŽADOVÁNO","NENÍ POŽADOVÁNO","NOT REQUIRED","NICHT ERFORDELICH","Nie jest wymagane","Pas nécessaire","NIET BENODIGD","Mitte vajalik","EI VAADITTU","НЕ ТРЕБУЕТСЯ"]
[]
[{"$nulls":32},"Prosím, vyplňte pole, která jsou označena barevně!","Prosím, vyplňte pole, která jsou označena barevně!","Please, fill in the fields that are marked in color!","Fülen Sie bitte markierte Felder!","Prosimy o wypełnienie pól oznaczonych kolorem!","S'il vous plaît remplissez les champs qui sont marqués en couleur!","Vul a.u.b. de gemarkeerde velden in!","Palun täida värvilised väljad!","\nTäytä kentät, jotka on merkitty värillä!","пожалуйста, заполните поля обозначенные цветом!"]
[]
[{"$nulls":32},"Ovládání","Ovládání","Operated","Bedienung","Sterowanie","PORTE","Bediening","Avamine","Ohjattu","Тип управления","Тип управления"]
[{"$nulls":32},"ručně","ručně","manually","hand","ręcznie wykonany","MANUELLE","hand","käsitsi","manuaalisesti","вручную","вручную"]
[{"$nulls":32},"elektricky","elektricky","electrical ","elektrisch","elektrycznie","MOTORISEE","elektrisch","elektriliselt","sähköisesti","электрическое управление или с помощью цепи","электрическое управление или с помощью цепи"]
[{"$nulls":32},"řetězovým převodem","řetězovým převodem","hauling chain operated","haspeklette","Łańcuch napędu","TREUIL A CHAINE","handketting","taliga","ketjukäyttöinen","\nцепной привод\nцепной привод","\nцепной привод\nцепной привод"]
[{"$nulls":32},"řetězovým převodem vlevo","řetězovým převodem vlevo","hauling chain operated - left","Haspelkette - links","Łańcuch napędu -  lewy","TREUIL A CHAINE - gauche","handketting - links","taliga - vasakule","ketjukäyttöinen - vasen","цепной привод -  левый\n"]
[{"$nulls":32},"řetězovým převodem vpravo","řetězovým převodem vpravo","hauling chain operated - right","Haspelkette - rechts","Łańcuch napędu -  prawy","TREUIL A CHAINE - droite","handketting - rechts","taliga - paremale","ketjukäyttöinen - oikea","цепной привод -  правая"]
[{"$nulls":32},"Umístění motoru","Umístění motoru","Possition of motor","Antriebesposition","Pozycja sylnika","LA POSITION MOTEUR","Positie van de motor","mootori asukohta","Mootorin asema","расположение мотора"]
[{"$nulls":32},"Elektricky - motor vlevo","Elektricky - motor vlevo","electric motor on the left","Antrieb - links","silnik elektryczny po lewej stronie","moteur électrique à gauche","elektromotor links","elektrimootor vasakul","sähkömoottori oikealla","электродвигатель слева"]
[{"$nulls":32},"Elektricky - motor vpravo","Elektricky - motor vpravo","electric motor on the right","Antrieb - rechts","silnik elektryczny po prawej stronie","moteur électrique à droite","elektromotor rechts","elektrimootor paremal","sähkömoottori vasemmalla","электродвигатель справа"]
[{"$nulls":32},"nezbytný boční prostor","nezbytný boční prostor","necessary side room ","Benötigter Freiraum ","niezbędna przestrzeń boczna ","écoinçon minimum requis ",null,"Vajalik küljeruum","tarvittava sivutila","необходимое боковое пространство"]
[]
[{"$nulls":32},"Strana bez motoru","Strana bez motoru","No motor/chain","Seine ohne Antrieb","Strona bez silnika","Cote oppose au treuil a chaine",null,"ilma mootorita/talita","Ei mootoria/ketjua","сторона без мотора/цепи"]
[{"$nulls":32},"Vrata s motorem nebo řetězovým převodem musí obsahovat napínací set 688CR (pro zpětné stahování vrat), který se montuje vždy na pravo (nezáleží na umístění motoru)","Vrata s motorem nebo řetězovým převodem musí obsahovat napínací set 688CR (pro zpětné stahování vrat), který se montuje vždy na pravo (nezáleží na umístění motoru)","Motor- or hauling chain operated door must be equipped with tension set  688CR (for closing door), which is fitted always on right side (depends not where is motor/hauling chain)","Tore mit Antrieb oder Hanspelkettenantrieb müssen Seilspannvorrichtung (für Zurückziehung) der ist immer rechts montiert (es ist nicht wichtig wo Antrieb montiert ist) enthalten.","Brama z silnikiem lub z przekładnią łańcuchową musi zawierać zestaw naprężający 688CR (do zamykania bramy), który montowany jest zawsze po prawej stronie (niezależnie od umieszczenia silnika)."," La porte motorisée avec transmission par chaîne doit contenir un set de tension  688CR (pour faciliter la manoeuvre de la porte), qui doit toujours etre  monté a droite (cela ne dépend pas de l'emplacement du moteur).",null,"Mootoriga või taliga avatav uks peab olema varustatud trossipingutuskomplektiga 688CR, mis paigaldatakse alati paremale poole ","Moottori- tai ketjukäyttöinen ovi on varustettava kiristyssarjalla 688CR (sulkeutuvalle ovelle) joka soveltu aina oikealle puolelle (riippumatta kummalla puolella on ","Система обратной тяги всегда располагается с правой стороны, вне зависимости от места нахождения электропривода/цепного редуктора. При ручном управлении не применяется."]
[]
[{"$nulls":32},"Úhel sklonu střechy","Úhel sklonu střechy","Gradient of the roof","Deckenwinkel","Głębokość prowadzenia poziomego","PENTE DU TOIT",null,"Katusekalle","Katon kaltevuus","Оцинкованный профиль 80х40х2 мм (в комплекте) должен быть закреплен на потолке минимум в трех точках (2 точки для ворот менее 10м²)"]
[{"$nulls":32},"Kotvící body pro jekl","Kotvící body pro jekl","Hanging point for sleeves","Aufhängepunkt für Vierkantrohr","Punkt mocowania dla profilu zamkn","POINT D'ANCRAG POUR FIXATION DU TUBE ",null,"Nelikanttoru kinnituskoht","riiputuspiste holkille","ТРОСЫ ВНУТРИ"]
[]
[{"$nulls":32},"Jekl 80x40x2 (pozink) je součástí dodávky. Musí se pevně přikotvit ke stropu minimálně na 3 místech (u vrat do 10m2 stačí na 2 místech)","Jekl 80x40x2 (pozink) je součástí dodávky. Musí se pevně přikotvit ke stropu minimálně na 3 místech (u vrat do 10m2 stačí na 2 místech)","Galvanized sleeve 80x40x2 is included. Sleeve must be attached to ceiling at minimum 3 points (2 points for door under 10 m2).","Rechteckigerohre 80x40x2 (verzinkt) ist ein Lieferungsbestandteil. Er muss fest an die Decke in drei Punkten befestigt werden, (beim Torblatt bis 10 m2 reichen 2 Punkte).","Profil zamknięty 80x40x2 (ocynkowany) stanowi część składową dostawy. Musi zostać mocno zamocowany do stropu. Minimalnie w trzech miejscach, (w wypadku bramy do 10 m2 wystarczy w dwóch miejscach)","Le tube de 80x40x2 en acier galvanisé est compris dans la livraison. II doi bien entre fixé au plafond par au minimum 3 points de fixation (pour les portes jusqu a d 10 m2, 2 point the fixation suffisent). ",null,"80x40x2 galvaniseeritud toru sisaldub tarnes. Toru kinnitatakse lakke minimaalselt kolmes kohas (2 kinnituskoha ustel alla 10m2)","Galvanoitu holkki 80x40x2 sisältyy. Holkki on kiinnitetty kattoon vähintään 3sta pistestä (2 pistettä ovella alle 10 m2).","Оцинкованный профиль 80х40х2 мм (в комплекте) должен быть закреплен на потолке минимум в трех точках (2 точки для ворот менее 10м²)"]
[{"$nulls":32},"LANKA UVNITŘ","LANKA UVNITŘ","CABLES INSIDE",{"$nulls":4},"Trossid sees","vaijerit SISÄLLÄ","ТРОСЫ ВНУТРИ "]
[{"$nulls":32},"Typ panelu","Typ panelu","Type of panel","Paneel-Typ","Rodzaj panelu","Type de panneau","Panel type","Paneelitüüp","lamellin tyypi","Тип панели"]
[{"$nulls":32},"40mm","40mm","40mm","40mm","40mm","40mm","40mm","40 mm","40mm","40мм"]
[{"$nulls":32},"80mm","80mm","80mm","80mm","80mm","80mm","80mm","80 mm","80mm","80мм"]
[{"$nulls":32},{"$f":"VLOOKUP(AH123,AH123:AR218,$AE$1,FALSE)","v":"Strana motoru"},"Strana motoru","Motor side ","Antriebseite ","Strona silnika ","Côté moteur ","Motorzijde ","Mootori pool ","Moottorin puoli ","Сторона двигателя "]
[{"$nulls":32},"Druhá strana","Druhá strana","Other side","Andere Seite ","Druga strona ","Autre côté ","Andere kant ","Teine pool ","Muu puoli ","Другая сторона "]
[{"$nulls":32},{"$f":"VLOOKUP(AH125,AH125:AR219,$AE$1,FALSE)","v":"Nabídka/Objednávka:"},"Nabídka/Objednávka:","Offer/Order:","Angebot/Bestellung:","Oferta/Zamówienie:","Offre/Commande:","Offerte/Order:","Pakkumine/tellimus:","Tarjous/Tilaus:","Предложение/заказ:"]
[{"$nulls":32},"Pozice:","Pozice:","Position:","Position:","Pozycje:","Positions:","Positie:","Ametikohad:","Työpaikat:","Позиции:"]
[{"$nulls":32},{"$f":"VLOOKUP(AH127,AH127:AR218,$AE$1,FALSE)","v":"průjezdná výška může být snížena příslušenstvím nainstalovaným na vnitřní straně vratového křídla (madlo, výztuha, extra nízký práh apod.)"},"průjezdná výška může být snížena příslušenstvím nainstalovaným na vnitřní straně vratového křídla (madlo, výztuha, extra nízký práh apod.)","clear height could be decreased by accessories installed on inner side of door leaf (handgrip, reinforcing strut, extra low threshold etc.)","Durchfahrtshöhe kann bei der Montage der Zubehörteile an die Innenseite des Torflügels reduziert werden (betrifft Handgriff, Versteifungen, besonders niedrige Schwelle etc.)","wysokość prześwitu może zostać zmniejszona dzięki akcesoriom zainstalowanym po wewnętrznej stronie skrzydła drzwi (uchwyt, wzmocnienie, Bardzo niski próg itp.)","L´ouverture de passage peut être réduite par les accessoires installés en intérieur du vantail de porte (les poignées, les renforts, Bardzo niski próg, etc.)","De hoogte van de vrije ruimte kan worden verlaagd door accessoires die aan de binnenkant van het deurblad zijn gemonteerd (handgreep, verstevigingsprofielen, extra lage drempel, enz.)","puhaskõrgust saab vähendada ukselehe siseküljele paigaldatud tarvitute abil (käepide, tugevdustala, eriti madal künnis, jne)","Vapaan kulkuaukon korkeus voi väheentyä ovilehteen kinnitetyn lisävarustuksen takia (jäykistin, käsikahva, erittäin matala kynnysarvo, jne.)"]

{"sheet":"SW-R","index":1,"n_rows":48,"n_cols":6,"rows_kept":48,"merged":[[4,0,6,0],[14,0,17,0],[39,2,40,8],[41,2,42,3],[41,4,42,6],[41,7,48,8],[43,2,44,3],[43,4,44,6],[45,2,46,3],[45,4,46,6],[47,2,48,3],[47,4,48,6]]}
[]
[]
[]
[]
[{"$f":"general!P58","v":230}]
{"$rows_empty":9}
[{"$f":"general!K5","v":0}]
{"$rows_empty":12}
[{"$nulls":5},{"$f":"general!K3","v":0}]
{"$rows_empty":11}
[null,null,{"$f":"general!W2","v":"VEDENÍ PRO NÍZKÝ PŘEKLAD (LL-I)"}]
[]
[null,null,{"$f":"general!AG106","v":"řetězovým převodem vpravo"},null,{"$f":"general!AG109","v":"Elektricky - motor vpravo"}]
[]
[null,null,{"$f":"general!$R$61","v":"Sestavil:"}]
[]
[null,null,{"$f":"general!$T$61","v":"Upravil:"}]
[]
[null,null,{"$f":"general!$Z$61","v":"Datum:"}]

{"sheet":"SW-L","index":2,"n_rows":48,"n_cols":6,"rows_kept":48,"merged":[[4,0,6,0],[14,0,17,0],[39,2,40,8],[41,2,42,3],[41,4,42,6],[41,7,48,8],[43,2,44,3],[43,4,44,6],[45,2,46,3],[45,4,46,6],[47,2,48,3],[47,4,48,6]]}
[]
[]
[]
[]
[{"$f":"general!P58","v":230}]
{"$rows_empty":9}
[{"$f":"general!K5","v":0}]
{"$rows_empty":12}
[{"$nulls":5},{"$f":"general!K3","v":0}]
{"$rows_empty":11}
[null,null,{"$f":"general!W2","v":"VEDENÍ PRO NÍZKÝ PŘEKLAD (LL-I)"}]
[]
[null,null,{"$f":"general!AG101","v":"Ovládání"},null,{"$f":"general!AG108","v":"Elektricky - motor vlevo"}]
[]
[null,null,{"$f":"general!$R$61","v":"Sestavil:"}]
[]
[null,null,{"$f":"general!$T$61","v":"Upravil:"}]
[]
[null,null,{"$f":"general!$Z$61","v":"Datum:"}]

{"sheet":"Manually_operated","index":3,"n_rows":48,"n_cols":6,"rows_kept":48,"merged":[[4,0,6,0],[14,0,17,0],[39,2,40,8],[41,2,42,3],[41,4,42,6],[41,7,48,8],[43,2,44,3],[43,4,44,6],[45,2,46,3],[45,4,46,6],[47,2,48,3],[47,4,48,6]]}
[]
[]
[]
[]
[{"$f":"general!P58","v":230}]
{"$rows_empty":9}
[{"$f":"general!K5","v":0}]
{"$rows_empty":12}
[{"$nulls":5},{"$f":"general!K3","v":0}]
{"$rows_empty":11}
[null,null,{"$f":"general!W2","v":"VEDENÍ PRO NÍZKÝ PŘEKLAD (LL-I)"}]
[]
[null,null,{"$f":"general!AG101","v":"Ovládání"},null,{"$f":"general!AG102","v":"ručně"}]
[]
[null,null,{"$f":"general!$R$61","v":"Sestavil:"}]
[]
[null,null,{"$f":"general!$T$61","v":"Upravil:"}]
[]
[null,null,{"$f":"general!$Z$61","v":"Datum:"}]

{"sheet":"Obrázky","index":4,"n_rows":131,"n_cols":26,"rows_kept":131,"hidden":true,"merged":[[5,24,7,30],[19,3,43,3],[19,4,43,10],[46,3,70,3],[46,4,70,10],[73,3,97,3],[73,4,97,10],[100,3,124,3],[100,4,124,10],[127,3,151,3],[127,4,151,10]]}
[]
[]
[]
[]
[]
[{"$nulls":24},"Pomocné výpočty"]
[]
[]
[]
[]
[]
[{"$nulls":24},"W=",{"$f":"general!$K$3","v":0}]
[{"$nulls":24},"L+ W + R = ",{"$f":"IF(OR(general!K3=\"\",general!K7=\"\"),\"L + W + R \", Y13 & Z12+Z16+Z17)","v":"L + W + R "}]
[]
[]
[{"$nulls":24},"Leva strana dole",{"$f":"IF(general!K7=\"\",\"\",IF(general!K7=general!AG102,180,IF(OR(general!K7=general!AG105,general!K7=general!AG108),450,180)))","v":""}]
[{"$nulls":24},"Pravo dole",{"$f":"IF(general!K7=\"\",\"\",IF(general!K7=general!AG102,180,IF(OR(general!K7=general!AG106,general!K7=general!AG109),450,180)))","v":""}]
[{"$nulls":24},"40/80mm",{"$f":"IF(general!$K$9=general!$AG$122,290,250)","v":250}]
[{"$nulls":24},"X",{"$f":"IF(general!$K$5=\"\",\"X\", \"X = \" & general!$K$5)","v":"X"}]
[{"$nulls":3},{"$f":"general!AG109","v":"Elektricky - motor vpravo"},{"$nulls":20},"Y",{"$f":"IF(OR(general!$K$3=\"\",general!K5=\"\",general!K7=\"\"),\"Y\",IF(general!$L$60<=3000,\"Y = 0\",IF(AND(general!$L$60>3000,general!$L$60<=4500),\"Y = \"&general!L65,\"Y = \"&general!$L$68)))","v":"Y"}]
[{"$nulls":24},"Y2",{"$f":"IF(OR(general!K5=\"\",general!K7=\"\"),\"Y2\",IF(general!$Q$10>4500,\"Y2 = \"&general!$L$69,\"Y2  = 0\"))","v":"Y2"}]
[{"$nulls":24},"S",{"$f":"IF(general!K5=\"\",\"S\",\"S = \" & general!K5+1020)","v":"S"}]
{"$rows_empty":24}
[{"$nulls":3},{"$f":"general!AG108","v":"Elektricky - motor vlevo"}]
{"$rows_empty":26}
[{"$nulls":3},{"$f":"general!AG102","v":"ručně"}]
{"$rows_empty":26}
[{"$nulls":3},{"$f":"general!AG105","v":"řetězovým převodem vlevo"}]
{"$rows_empty":26}
[{"$nulls":3},{"$f":"general!AG106","v":"řetězovým převodem vpravo"}]
[]
[]
[{"$nulls":24},{"$error":"#VALUE!"}]